bitfinex/quotes_SOLUSD_20251224
["timestamp","ask_amount","ask_price","bid_price","bid_amount"]
[1766543562791,0.68,122.72,122.68,8.86127409]
[1766543563186,2.29660759,122.73,122.69,0.71]
[1766543563396,0.68,122.73,122.69,0.71]
[1766543564381,2.97660759,122.71,122.67,0.91]
[1766543564907,0.68,122.69,122.67,0.2]
[1766543565404,0.68,122.7,122.67,0.91]
[1766543565810,2.97660759,122.7,122.67,0.91]
[1766543565991,11.1268136,122.7,122.67,0.91]
[1766543566198,11.1268136,122.7,122.67,0.2]
[1766543566396,0.68,122.69,122.67,0.2]
[1766543568499,11.12615771,122.71,122.67,0.91]
[1766543568698,8.82955012,122.71,122.67,0.91]
[1766543569016,11.12615771,122.71,122.67,0.91]
[1766543569311,0.68,122.7,122.67,0.91]
[1766543569886,21.56358738,122.71,122.67,0.91]
[1766543570515,0.68,122.7,122.67,0.91]
[1766543571787,55.61552834,122.75,122.69,0.71]
[1766543571788,0.68,122.73,122.69,0.71]
[1766543571988,0.68,122.74,122.71,0.71]
[1766543572288,19.26444661,122.75,122.71,3.00660759]
[1766543572503,8.82677365,122.75,122.71,3.00660759]
[1766543572700,8.82677365,122.75,122.72,0.71]
[1766543572914,19.26444661,122.75,122.72,0.71]
[1766543573113,8.82677365,122.75,122.72,0.71]
[1766543573493,8.82552348,122.77,122.73,0.71]
[1766543573697,0.68,122.76,122.73,0.71]
[1766543573913,11.11767296,122.76,122.73,0.71]
[1766543574105,19.2636661,122.76,122.72,2.29660759]
[1766543574305,10.43767296,122.75,122.72,3.00660759]
[1766543574816,0.68,122.74,122.7,8.85986136]
[1766543575017,0.68,122.74,122.7,11.15646895]
[1766543575522,2.97660759,122.74,122.7,0.71]
[1766543575710,11.12409219,122.74,122.7,0.71]
[1766543576530,8.8274846,122.74,122.7,0.71]
[1766543576719,8.8274846,122.74,122.7,3.00660759]
[1766543576921,0.68,122.73,122.69,23.03048263]
[1766543577225,0.68,122.73,122.69,25.32709022]
[1766543577533,0.68,122.73,122.69,26.03709022]
[1766543579036,8.82798194,122.73,122.69,17.88660759]
[1766543579328,0.68,122.72,122.69,23.74060877]
[1766543579501,0.68,122.72,122.69,26.03721636]
[1766543581107,0.68,122.72,122.69,23.74060877]
[1766543581400,0.68,122.72,122.69,15.59]
[1766543582431,2.97660759,122.71,122.67,0.91]
[1766543582601,0.68,122.7,122.67,0.91]
[1766543583595,0.68,122.7,122.67,0.2]
[1766543584213,0.68,122.7,122.67,3.20660759]
[1766543584421,8.14965009,122.71,122.67,3.20660759]
[1766543584422,0.68,122.71,122.68,0.71]
[1766543584623,19.26652829,122.72,122.68,0.71]
[1766543584921,21.56313588,122.72,122.68,0.71]
[1766543585415,0.68,122.71,122.67,0.91]
[1766543585626,0.68,122.7,122.67,0.2]
[1766543586327,0.68,122.69,122.67,0.2]
[1766543586926,3.00660759,122.71,122.67,0.87]
[1766543587127,8.85995925,122.7,122.67,0.87]
[1766543588057,8.14955431,122.71,122.67,0.87]
[1766543588352,8.85955431,122.71,122.67,0.87]
[1766543588550,8.14955431,122.71,122.67,0.2]
[1766543588850,3.00660759,122.7,122.67,1e-08]
[1766543589052,0.71,122.7,122.67,0.67000001]
[1766543589223,8.86040741,122.7,122.67,0.67000001]
[1766543589631,8.14949726,122.71,122.67,2.2966076]
[1766543589836,11.14767296,122.72,122.69,0.67]
[1766543590035,19.29650588,122.72,122.69,0.67]
[1766543590444,10.43767296,122.72,122.69,0.67]
[1766543590629,19.29630856,122.72,122.69,0.67]
[1766543595058,0.71,122.71,122.67,1e-08]
[1766543595245,0.71,122.7,122.67,1e-08]
[1766543595437,0.71,122.7,122.67,0.67000001]
[1766543596438,19.29630856,122.72,122.68,2.29660759]
[1766543596637,18.58630856,122.72,122.69,0.67]
[1766543596848,19.29630856,122.72,122.69,0.67]
[1766543597667,11.14767296,122.72,122.69,0.67]
[1766543598456,11.15409836,122.74,122.7,0.67]
[1766543598630,0.71,122.73,122.7,0.67]
[1766543599859,10.43767296,122.74,122.71,0.67]
[1766543600159,10.43767296,122.74,122.72,0.67]
[1766543600453,0.71,122.76,122.73,0.67]
[1766543600652,10.44125655,122.78,122.74,0.67]
[1766543600953,0.71,122.77,122.74,0.67]
[1766543601747,8.85550965,122.77,122.74,0.67]
[1766543601944,10.44211724,122.77,122.72,2.29660759]
[1766543602141,0.71,122.75,122.71,2.96660759]
[1766543602653,0.71,122.74,122.71,0.67]
[1766543603753,0.71,122.74,122.7,2.29660759]
[1766543603957,0.71,122.73,122.7,2.29660759]
[1766543604454,0.71,122.73,122.7,2.96660759]
[1766543605052,8.85798726,122.73,122.7,0.67]
[1766543605452,0.71,122.72,122.69,17.84660759]
[1766543606338,8.14753915,122.74,122.7,2.29660759]
[1766543606544,8.14753915,122.74,122.71,0.67]
[1766543606741,19.29448823,122.75,122.71,0.67]
[1766543606944,19.29448823,122.75,122.71,2.96660759]
[1766543607165,0.71,122.74,122.71,2.96660759]
[1766543607547,11.14767296,122.75,122.71,2.96660759]
[1766543607752,0.71,122.74,122.71,2.96660759]
[1766543608360,0.71,122.74,122.71,0.67]
[1766543608950,10.43767296,122.75,122.72,0.67]
[1766543609141,11.14767296,122.75,122.72,0.67]
[1766543612072,19.2943529,122.75,122.72,0.67]
[1766543614372,11.14767296,122.75,122.72,0.67]
[1766543617677,10.43767296,122.75,122.72,2.29660759]
[1766543617980,0.7,122.74,122.7,2.98660759]
[1766543618181,2.29660759,122.73,122.69,14.88]
[1766543618483,0.7,122.72,122.68,2.98660759]
[1766543618675,0.7,122.72,122.69,0.69]
[1766543618981,0.7,122.72,122.69,2.98660759]
[1766543619150,0.7,122.73,122.7,0.69]
[1766543620661,8.14755125,122.74,122.7,0.69]
[1766543620866,19.2845881,122.75,122.71,2.15990603]
[1766543621875,0.7,122.74,122.71,2.15990603]
[1766543622054,19.2845881,122.75,122.71,2.15990603]
[1766543622263,0.7,122.74,122.71,2.15990603]
[1766543624478,10.43767296,122.75,122.72,0.69]
[1766543624677,11.13767296,122.75,122.72,0.69]
[1766543624870,11.13767296,122.75,122.72,2.15990603]
[1766543625371,8.84551998,122.77,122.74,0.69]
[1766543625575,8.84551998,122.77,122.72,2.15990603]
[1766543625576,0.7,122.76,122.72,2.15990603]
[1766543626780,8.84624586,122.76,122.73,0.69]
[1766543627987,0.7,122.76,122.73,0.69]
[1766543629464,8.84550416,122.77,122.74,0.69]
[1766543629965,8.84550416,122.77,122.74,2.15990603]
[1766543630368,14.88,122.82,122.75,2.15990603]
[1766543630570,0.7,122.8,122.77,0.69]
[1766543630771,0.7,122.8,122.76,2.15990603]
[1766543631087,0.7,122.79,122.76,0.69]
[1766543631680,1.46990603,122.79,122.74,17.03990603]
[1766543631865,0.7,122.77,122.74,2.15990603]
[1766543632190,0.7,122.77,122.74,0.69]
[1766543633787,0.7,122.77,122.74,2.15990603]
[1766543634275,0.7,122.78,122.75,2.15990603]
[1766543635484,0.7,122.77,122.74,1.46990603]
[1766543635783,8.14436132,122.79,122.74,10.30700937]
[1766543635987,0.7,122.78,122.75,0.69]
[1766543636393,0.7,122.78,122.75,2.15990603]
[1766543637888,0.7,122.79,122.76,2.15990603]
[1766543638885,0.7,122.81,122.78,0.69]
[1766543639089,0.7,122.82,122.77,0.69]
[1766543639276,0.7,122.82,122.79,2.15990603]
[1766543639674,0.7,122.83,122.79,1.46990603]
[1766543639874,0.7,122.82,122.79,0.69]
[1766543640280,1.46990603,122.82,122.76,43.39083519]
[1766543640480,0.7,122.81,122.77,2.15990603]
[1766543641275,0.7,122.81,122.78,0.69]
[1766543641467,0.7,122.81,122.78,2.15990603]
[1766543642222,11.13767296,122.83,122.8,2.15990603]
[1766543642394,0.7,122.85,122.81,0.69]
[1766543642575,0.7,122.85,122.82,2.15990603]
[1766543643295,8.23957436,122.86,122.83,2.15990603]
[1766543643296,0.1,122.86,122.83,2.15990603]
[1766543643997,0.1,122.86,122.84,1.46990603]
[1766543644187,0.1,122.86,122.83,0.69]
[1766543644493,0.1,122.86,122.83,2.15990603]
[1766543644705,0.8,122.86,122.83,0.69]
[1766543644999,0.7,122.85,122.81,2.15990603]
[1766543645298,0.7,122.85,122.81,10.30254258]
[1766543645678,0.7,122.85,122.81,1.46990603]
[1766543645872,0.7,122.85,122.82,0.69]
[1766543646911,0.69,122.82,122.78,0.68]
[1766543647115,2.15990603,122.82,122.78,2.14990603]
[1766543649381,0.69,122.82,122.78,2.14990603]
[1766543650507,8.83209539,122.82,122.78,2.14990603]
[1766543651082,0.69,122.82,122.78,2.14990603]
[1766543652504,8.83221801,122.82,122.78,2.14990603]
[1766543657294,0.69,122.81,122.78,0.68]
[1766543658002,0.69,122.81,122.78,2.14990603]
[1766543660608,0.69,122.8,122.76,23.70570662]
[1766543660808,0.69,122.8,122.76,25.17561265]
[1766543661110,0.69,122.8,122.77,0.68]
[1766543661294,0.69,122.8,122.77,10.29507955]
[1766543661693,0.69,122.8,122.77,8.82517352]
[1766543661893,0.69,122.8,122.77,2.14990603]
[1766543662507,0.69,122.8,122.77,0.68]
[1766543663715,1.46990603,122.8,122.76,24.49560031]
[1766543663910,0.69,122.79,122.76,23.70569428]
[1766543664722,0.69,122.78,122.74,17.02990603]
[1766543665016,0.69,122.78,122.75,0.68]
[1766543666514,2.15990603,122.78,122.74,25.17699017]
[1766543666706,1.46990603,122.78,122.74,24.49699017]
[1766543667018,2.15990603,122.78,122.75,0.68]
[1766543667923,0.69,122.78,122.75,0.68]
[1766543668093,8.83354234,122.8,122.76,1.46990603]
[1766543668294,102.7,122.87,122.78,0.68]
[1766543668295,2.15990603,122.82,122.78,0.68]
[1766543668506,0.69,122.82,122.78,2.14990603]
[1766543669100,0.69,122.82,122.79,0.68]
[1766543669807,20.04915609,122.83,122.79,1.46990603]
[1766543669808,10.43767296,122.83,122.79,1.46990603]
[1766543670010,11.12767296,122.83,122.8,0.68]
[1766543670329,2.15990603,122.82,122.78,0.68]
[1766543670706,0.69,122.82,122.78,2.14990603]
[1766543673012,0.69,122.82,122.79,0.68]
[1766543674028,2.15990603,122.81,122.77,17.02990603]
[1766543674327,0.69,122.81,122.77,17.02990603]
[1766543674524,2.15990603,122.81,122.77,17.02990603]
[1766543674916,10.30271678,122.81,122.77,17.02990603]
[1766543675910,8.83281075,122.81,122.77,17.02990603]
[1766543677429,31.50026699,122.84,122.79,1.46990603]
[1766543677611,10.43767296,122.83,122.8,2.14990603]
[1766543677812,11.14767296,122.83,122.8,2.14990603]
[1766543678218,0.71,122.83,122.8,2.14990603]
[1766543678517,0.71,122.85,122.82,0.68]
[1766543678710,0.71,122.85,122.82,2.14990603]
[1766543678913,8.94950079,122.86,122.82,1.46990603]
[1766543679112,8.94950079,122.86,122.83,0.68]
[1766543681929,0.81,122.86,122.83,0.68]
[1766543682243,0.1,122.86,122.84,0.68]
[1766543682623,0.71,122.85,122.82,17.15199011]
[1766543682829,8.94935784,122.86,122.82,17.83199011]
[1766543683321,8.94935784,122.86,122.82,17.15199011]
[1766543683517,8.94935784,122.86,122.82,17.83199011]
[1766543683833,8.94935784,122.86,122.83,0.68]
[1766543684033,0.71,122.85,122.82,17.15199011]
[1766543684236,0.71,122.84,122.82,14.86]
[1766543684413,2.29199011,122.85,122.82,14.86]
[1766543684620,3.00199011,122.85,122.81,0.68]
[1766543684934,0.71,122.83,122.79,0.68]
[1766543685124,3.00199011,122.83,122.79,2.97199011]
[1766543685333,3.00199011,122.82,122.79,0.68]
[1766543685518,0.71,122.82,122.79,0.68]
[1766543686339,3.00199011,122.82,122.78,15.54]
[1766543686516,0.71,122.82,122.78,17.83199011]
[1766543686953,2.29199011,122.83,122.8,0.68]
[1766543687153,0.71,122.83,122.8,0.68]
[1766543687315,3.00199011,122.83,122.8,0.68]
[1766543687515,3.00199011,122.83,122.79,2.97199011]
[1766543687711,2.29199011,122.82,122.79,0.68]
[1766543688222,2.29199011,122.82,122.79,8.82390746]
[1766543688622,0.71,122.83,122.79,8.82390746]
[1766543688833,2.29199011,122.82,122.79,8.82390746]
[1766543689140,2.29199011,122.82,122.79,0.68]
[1766543689141,3.00199011,122.82,122.79,0.68]
[1766543689641,2.29199011,122.8,122.78,14.86]
[1766543690320,3.00199011,122.81,122.78,15.54]
[1766543692922,0.71,122.82,122.78,23.00463211]
[1766543693131,2.29199011,122.82,122.79,0.68]
[1766543693330,3.00199011,122.82,122.79,0.68]
[1766543696146,2.29199011,122.83,122.79,8.14364473]
[1766543696342,35.21071013,122.85,122.8,0.68]
[1766543696343,8.85024581,122.85,122.8,0.68]
[1766543696647,3.00199011,122.84,122.8,0.68]
[1766543696843,2.29199011,122.83,122.8,0.68]
[1766543698647,0.71,122.8,122.73,0.68]
[1766543698835,2.29199011,122.79,122.76,0.68]
[1766543699035,3.00199011,122.79,122.76,0.68]
[1766543699753,0.71,122.79,122.76,0.68]
[1766543700050,2.29199011,122.82,122.74,14.86]
[1766543700051,3.00199011,122.77,122.74,14.86]
[1766543700639,2.29199011,122.76,122.73,0.68]
[1766543700842,2.29199011,122.75,122.7,0.68]
[1766543701024,2.29199011,122.74,122.71,15.54]
[1766543701631,2.29199011,122.76,122.72,0.68]
[1766543701827,0.71,122.79,122.74,8.14730324]
[1766543702053,3.00199011,122.78,122.74,8.82730324]
[1766543702273,0.71,122.78,122.75,0.68]
[1766543702554,3.00199011,122.78,122.75,0.68]
[1766543702757,3.00199011,122.78,122.74,8.82730324]
[1766543704252,2.29199011,122.76,122.74,14.88]
[1766543704550,0.71,122.74,122.71,15.56]
[1766543704731,3.00199011,122.74,122.71,15.56]
[1766543704932,2.29199011,122.73,122.71,15.56]
[1766543707135,3.00199011,122.74,122.71,15.56]
[1766543707333,10.43767296,122.75,122.69,0.69]
[1766543707334,2.29199011,122.72,122.69,0.69]
[1766543707530,2.29199011,122.71,122.69,0.69]
[1766543707750,0.66,122.72,122.69,0.69]
[1766543707933,2.95199011,122.72,122.69,0.69]
[1766543709249,2.29199011,122.73,122.7,0.69]
[1766543709447,2.95199011,122.73,122.7,0.69]
[1766543709950,2.95199011,122.71,122.68,14.88]
[1766543710156,2.29199011,122.7,122.68,14.88]
[1766543710345,0.66,122.71,122.68,14.88]
[1766543710853,2.29199011,122.72,122.69,0.69]
[1766543711032,0.66,122.73,122.69,0.69]
[1766543711233,2.95199011,122.72,122.69,0.69]
[1766543711534,2.29199011,122.73,122.69,8.15054406]
[1766543711848,13.38966307,122.73,122.7,0.69]
[1766543712434,2.95199011,122.71,122.67,15.57000001]
[1766543713236,2.95199011,122.71,122.67,23.72154167]
[1766543713742,2.95199011,122.71,122.68,0.69]
[1766543713948,2.29199011,122.72,122.68,0.69]
[1766543714144,13.38966307,122.73,122.69,0.69]
[1766543714341,2.95199011,122.73,122.69,0.69]
[1766543715134,2.95199011,122.73,122.7,0.69]
[1766543715543,2.95199011,122.73,122.7,8.83977929]
[1766543715838,2.95199011,122.74,122.71,0.69]
[1766543716238,2.29199011,122.73,122.71,0.69]
[1766543716651,2.95199011,122.73,122.7,14.88]
[1766543717960,2.95199011,122.73,122.7,23.02991864]
[1766543718161,2.29199011,122.73,122.7,23.71991864]
[1766543719968,0.66,122.74,122.7,23.71991864]
[1766543720169,2.29199011,122.73,122.7,23.71991864]
[1766543721754,2.95199011,122.73,122.7,23.71991864]
[1766543721939,2.95199011,122.73,122.7,14.88]
[1766543722146,2.29199011,122.72,122.7,14.88]
[1766543722370,2.95199011,122.72,122.7,14.88]
[1766543722871,0.66,122.71,122.68,23.03102142]
[1766543723079,2.95199011,122.71,122.68,23.03102142]
[1766543723247,2.95199011,122.71,122.68,14.88]
[1766543724366,2.95199011,122.71,122.68,23.72126077]
[1766543724563,0.66,122.71,122.68,23.72126077]
[1766543724952,0.66,122.71,122.68,15.57]
[1766543725880,2.29199011,122.71,122.69,0.69]
[1766543726247,8.14803019,122.73,122.69,0.69]
[1766543726448,2.29199011,122.73,122.7,0.69]
[1766543726657,11.09767296,122.75,122.7,0.69]
[1766543726876,2.29199011,122.73,122.7,0.69]
[1766543727973,2.29199011,122.71,122.68,23.72102233]
[1766543728879,2.29199011,122.71,122.69,0.69]
[1766543729062,0.66,122.72,122.69,0.69]
[1766543729261,2.29199011,122.71,122.69,0.69]
[1766543731158,2.29199011,122.71,122.68,14.88]
[1766543731159,0.66,122.7,122.68,14.88]
[1766543731358,2.95199011,122.7,122.68,14.88]
[1766543732477,2.95199011,122.71,122.68,14.88]
[1766543733276,0.66,122.71,122.68,15.57]
[1766543733577,2.95199011,122.71,122.68,15.57]
[1766543734383,14.88,122.79,122.69,0.69]
[1766543734384,0.68,122.73,122.69,0.69]
[1766543734568,2.97199011,122.73,122.7,0.69]
[1766543736160,2.97199011,122.75,122.71,0.69]
[1766543736383,2.97199011,122.75,122.71,17.86199011]
[1766543737257,2.97199011,122.75,122.71,26.01114062]
[1766543737872,2.97199011,122.75,122.71,23.71915051]
[1766543738068,2.97199011,122.75,122.71,15.57]
[1766543738460,0.68,122.75,122.71,23.71927324]
[1766543738781,2.97199011,122.75,122.71,23.71927324]
[1766543739680,0.68,122.75,122.71,26.01126335]
[1766543739973,2.97199011,122.75,122.71,26.01126335]
[1766543741175,2.97199011,122.75,122.71,23.71927324]
[1766543741980,2.14964043,122.75,122.71,23.71927324]
[1766543742669,2.14964043,122.75,122.72,0.66]
[1766543745787,0.69,122.74,122.7,8.80956265]
[1766543745987,2.15964043,122.73,122.7,8.80956265]
[1766543746179,0.69,122.73,122.7,8.80956265]
[1766543747687,2.15964043,122.73,122.7,8.80956265]
[1766543748390,2.15964043,122.73,122.7,8.80993836]
[1766543751582,1.46964043,122.74,122.71,0.66]
[1766543752096,2.15964043,122.75,122.72,0.66]
[1766543754372,0.69,122.75,122.72,0.66]
[1766543754675,2.15964043,122.75,122.72,0.66]
[1766543754874,1.46964043,122.73,122.71,14.88]
[1766543755090,2.15964043,122.73,122.71,14.88]
[1766543756373,2.15964043,122.72,122.69,14.88]
[1766543756579,2.15964043,122.7,122.67,15.54000001]
[1766543757004,0.69,122.7,122.67,15.54000001]
[1766543757496,0.69,122.7,122.67,23.69192155]
[1766543758094,2.15964043,122.71,122.68,0.66]
[1766543758898,0.69,122.71,122.68,0.66]
[1766543759091,2.15964043,122.71,122.68,0.66]
[1766543760204,10.30896618,122.71,122.67,23.69192155]
[1766543760807,2.15964043,122.7,122.67,15.54000001]
[1766543761612,1.46964043,122.68,122.67,1e-08]
[1766543761807,2.15964043,122.69,122.67,1e-08]
[1766543766197,11.12767296,122.7,122.67,0.66000001]
[1766543766377,20.05728439,122.7,122.67,1e-08]
[1766543766577,0.69,122.69,122.67,1e-08]
[1766543768302,0.69,122.7,122.67,0.67000001]
[1766543768510,2.15964043,122.7,122.67,0.67000001]
[1766543769401,0.69,122.7,122.67,0.67000001]
[1766543770796,2.15964043,122.7,122.67,0.67000001]
[1766543773911,2.15964043,122.7,122.67,1e-08]
[1766543773912,1.46964043,122.69,122.67,1e-08]
[1766543774112,0.69,122.68,122.67,1e-08]
[1766543774308,2.15964043,122.68,122.67,1e-08]
[1766543775814,0.69,122.68,122.67,1e-08]
[1766543776003,0.69,122.69,122.67,1e-08]
[1766543776205,0.69,122.7,122.67,0.67000001]
[1766543783615,0.69,122.7,122.67,8.82193256]
[1766543783789,0.69,122.7,122.67,0.67000001]
[1766543783989,2.15964043,122.7,122.67,0.67000001]
[1766543785506,0.69,122.7,122.67,0.67000001]
[1766543785895,2.15964043,122.7,122.67,0.67000001]
[1766543786100,2.15964043,122.71,122.68,0.67]
[1766543786409,9.618944,122.71,122.67,1e-08]
[1766543786613,2.15964043,122.7,122.67,0.67000001]
[1766543788218,0.69,122.7,122.67,0.67000001]
[1766543792229,0.69,122.7,122.67,8.82186357]
[1766543792528,1.46964043,122.71,122.68,0.67]
[1766543792726,0.69,122.73,122.69,1.46964043]
[1766543792927,0.69,122.73,122.7,0.67]
[1766543793345,1.46964043,122.74,122.71,0.67]
[1766543793508,0.69,122.74,122.71,0.67]
[1766543799430,2.16964043,122.75,122.72,0.66]
[1766543800940,0.7,122.74,122.72,0.66]
[1766543803037,0.7,122.74,122.71,10.27893476]
[1766543803238,0.7,122.74,122.71,8.80929433]
[1766543805951,0.7,122.74,122.72,0.66]
[1766543806124,2.99635028,122.75,122.72,0.66]
[1766543807949,0.7,122.75,122.72,0.66]
[1766543808236,2.99635028,122.75,122.72,0.66]
[1766543810544,0.7,122.75,122.72,0.66]
[1766543810845,2.99635028,122.75,122.72,0.66]
[1766543811426,0.7,122.75,122.72,0.66]
[1766543812848,2.99635028,122.75,122.72,0.66]
[1766543813045,0.7,122.74,122.71,23.6891508]
[1766543813452,2.99635028,122.74,122.71,15.54]
[1766543813632,0.7,122.73,122.71,14.88]
[1766543813954,0.7,122.73,122.71,15.54]
[1766543814947,0.7,122.73,122.71,14.88]
[1766543817758,2.99635028,122.72,122.69,23.69052292]
[1766543818164,0.7,122.71,122.67,11.10781854]
[1766543818334,0.7,122.71,122.68,0.66]
[1766543820256,2.29635028,122.72,122.69,0.66]
[1766543820257,0.7,122.72,122.69,0.66]
[1766543822869,2.99635028,122.72,122.69,0.66]
[1766543824066,0.7,122.71,122.69,0.66]
[1766543826674,8.1481335,122.73,122.69,0.66]
[1766543826968,0.7,122.72,122.69,0.66]
[1766543830386,8.84886596,122.72,122.69,0.66]
[1766543830564,0.66,122.69,122.67,14.88000001]
[1766543830869,8.14886596,122.72,122.67,10.44789563]
[1766543831077,11.10521624,122.72,122.68,0.66]
[1766543831247,2.95635028,122.72,122.69,0.66]
[1766543831446,11.10501175,122.72,122.69,0.66]
[1766543833687,8.80866147,122.72,122.69,0.66]
[1766543833891,2.95635028,122.72,122.69,0.66]
[1766543834290,0.66,122.72,122.69,0.66]
[1766543834491,2.95635028,122.72,122.69,0.66]
[1766543835291,11.10499859,122.72,122.69,0.66]
[1766543837795,8.80864831,122.72,122.69,0.66]
[1766543837986,11.10499859,122.72,122.69,0.66]
[1766543839504,0.66,122.72,122.69,0.66]
[1766543839705,13.39402324,122.73,122.69,0.66]
[1766543839899,13.39402324,122.73,122.7,0.66]
[1766543840105,2.29635028,122.75,122.71,0.66]
[1766543840299,0.66,122.74,122.71,0.66]
[1766543841012,10.43767296,122.75,122.72,0.66]
[1766543841181,11.09767296,122.75,122.72,0.66]
[1766543843404,13.39402324,122.75,122.72,0.66]
[1766543849709,11.09767296,122.75,122.72,0.66]
[1766543849914,13.39402324,122.75,122.72,0.66]
[1766543850415,2.29635028,122.74,122.72,0.66]
[1766543850588,2.95635028,122.74,122.72,0.66]
[1766543851307,2.95635028,122.74,122.7,2.29635028]
[1766543851497,0.66,122.72,122.7,0.66]
[1766543851698,2.95635028,122.73,122.7,0.66]
[1766543851889,2.95635028,122.73,122.7,8.80993447]
[1766543852083,2.95635028,122.73,122.71,0.66]
[1766543854723,0.66,122.73,122.7,0.7]
[1766543857323,2.29635028,122.71,122.69,14.88]
[1766543857494,0.67,122.7,122.68,0.72]
[1766543858099,2.96635028,122.71,122.68,0.72]
[1766543859805,2.96635028,122.71,122.68,8.87124559]
[1766543860326,2.96635028,122.71,122.68,0.72]
[1766543860827,0.67,122.7,122.68,0.72]
[1766543862823,2.96635028,122.7,122.67,8.87187755]
[1766543863018,2.96635028,122.7,122.67,0.72000001]
[1766543863327,0.67,122.69,122.67,0.72000001]
[1766543863521,2.96635028,122.7,122.67,0.72000001]
[1766543863899,2.14089716,122.7,122.67,0.72000001]
[1766543865728,0.67,122.69,122.67,0.72000001]
[1766543865922,2.14089716,122.69,122.67,1e-08]
[1766543866317,2.14089716,122.68,122.67,1e-08]
[1766543866507,0.67,122.68,122.67,1e-08]
[1766543868427,2.14089716,122.68,122.67,1e-08]
[1766543868929,0.67,122.67,122.65,0.2]
[1766543869130,1.47089716,122.66,122.65,0.2]
[1766543869344,2.14089716,122.66,122.64,0.2]
[1766543870337,0.67,122.65,122.64,0.2]
[1766543870529,0.67,122.65,122.62,15.08]
[1766543870530,0.67,122.64,122.62,15.08]
[1766543870725,2.14089716,122.64,122.62,0.2]
[1766543870933,0.67,122.65,122.62,0.92]
[1766543871250,2.14089716,122.65,122.62,0.92]
[1766543872044,28.53423374,122.66,122.61,0.2]
[1766543872222,2.14089716,122.63,122.61,0.2]
[1766543872623,8.82328169,122.65,122.61,0.92]
[1766543872840,0.67,122.64,122.61,0.92]
[1766543873143,1.47089716,122.63,122.61,0.2]
[1766543873650,2.14089716,122.63,122.61,0.2]
[1766543874246,1.47089716,122.62,122.61,0.2]
[1766543874429,2.14089716,122.63,122.61,0.2]
[1766543876524,10.29536494,122.64,122.61,0.92]
[1766543876723,2.14089716,122.64,122.61,0.92]
[1766543876923,10.29490797,122.64,122.61,0.92]
[1766543877222,1.47089716,122.63,122.61,0.92]
[1766543877831,10.29490797,122.64,122.61,0.92]
[1766543878349,1.47089716,122.63,122.61,0.92]
[1766543878545,2.14089716,122.63,122.61,0.2]
[1766543881157,0.67,122.63,122.61,0.2]
[1766543881341,1.47089716,122.62,122.61,0.2]
[1766543881643,2.14089716,122.63,122.61,0.2]
[1766543882343,10.29562394,122.63,122.61,0.2]
[1766543882857,2.14089716,122.63,122.61,0.2]
[1766543883051,8.15328169,122.65,122.62,0.72]
[1766543883249,18.59056192,122.66,122.62,0.72]
[1766543883565,10.43767296,122.66,122.62,1.47089716]
[1766543883772,1.47089716,122.64,122.62,0.72]
[1766543883934,11.90857012,122.66,122.63,0.72]
[1766543884135,1.47089716,122.65,122.63,0.72]
[1766543885560,10.29368025,122.66,122.63,0.72]
[1766543886560,10.43767296,122.67,122.63,8.87461018]
[1766543886745,11.90857012,122.67,122.64,0.72]
[1766543886952,1.47089716,122.66,122.64,0.72]
[1766543890570,19.28981133,122.67,122.64,0.72]
[1766543890753,1.47089716,122.66,122.64,0.72]
[1766543892070,20.76070849,122.67,122.64,0.72]